No. of Trans,Dept Family,Entity Name,Cert Date,Supplier Name,Reference,Gross Amt,Group/Department,Type of Expenditure - Subjective Codes,
1,DCMS,EH,19/11/2012,Feilden Clegg Bradley Studios LLP,0040014781,"174,000.00 ",Heritage Protection & Planning Group - Nat. Planning & Conservation Department,Commissioned architects,
2,DCMS,EH,21/11/2012,Feilden Clegg Bradley Studios LLP,0040014782,"31,800.00 ",Heritage Protection & Planning Group - Nat. Planning & Conservation Department,Commissioned architects,
3,DCMS,EH,11/09/2012,Red Kite Management Services Ltd,0040009101,"25,689.60 ",National Collections Group - Historic Properties Department,Exhibits/Displays,
4,DCMS,EH,25/10/2012,Carisbrooke Castle Museum Trust,0040012110,"25,730.00 ",National Collections Group - Historic Properties Department,Income Sharing Agreement,
5,DCMS,EH,04/12/2012,Electrosonic Ltd,0040016853,"67,390.34 ",National Collections Group - Property Maintenance Programme,Exhibits/Displays,
6,DCMS,EH,04/12/2012,Electrosonic Ltd,0040016853,"27,046.37 ",National Collections Group - Property Maintenance Programme,Exhibits/Displays,
7,DCMS,EH,04/12/2012,Electrosonic Ltd,0040016853,"20,669.02 ",National Collections Group - Property Maintenance Programme,Exhibits/Displays,
8,DCMS,EH,04/12/2012,Electrosonic Ltd,0040016853,"13,320.67 ",National Collections Group - Property Maintenance Programme,Exhibits/Displays,
9,DCMS,EH,21/12/2012,Ellis and Co Rest and Bldg Ltd,0040018416,"54,978.22 ",National Collections Group - Property Maintenance Programme,Planned Maintenance,
10,DCMS,EH,05/10/2012,W H Smith and R Ensor SAP Scheme,0040011668,"6,424.39 ",Resources Group - Office Estate,Insurance,
11,DCMS,EH,05/10/2012,W H Smith and R Ensor SAP Scheme,0040011668,"35,516.40 ",Resources Group - Office Estate,Rent - Operating Leases,
12,DCMS,EH,21/09/2012,Wessex Archaeology,0040008542,"50,000.00 ",Heritage Protection & Planning Group - Heritage Protection Department,Maritime Consultants,
13,DCMS,EH,17/12/2012,Wessex Archaeology,0040015149,"50,000.00 ",Heritage Protection & Planning Group - Heritage Protection Department,Maritime Consultants,
14,DCMS,EH,14/12/2012,Knight Frank LLP,0040018068,"25,348.37 ",Resources Group - Office Estate,Rent - Operating Leases,
15,DCMS,EH,14/12/2012,Knight Frank LLP,0040018068,"16,747.33 ",Resources Group - Office Estate,Building Service Charges,
16,DCMS,EH,09/11/2012,Sykes and Son Limited,0040012976,185.92 ,National Collections Group - Property Maintenance Programme,Annual Cyclical Work M & E,
17,DCMS,EH,09/11/2012,Sykes and Son Limited,0040012976,"17,054.44 ",National Collections Group - Property Maintenance Programme,Annual Cyclical Work M & E,
18,DCMS,EH,09/11/2012,Sykes and Son Limited,0040012976,"11,775.30 ",National Collections Group - Property Maintenance Programme,Leased Accomodation Maint,
19,DCMS,EH,09/11/2012,Sykes and Son Limited,0040012976,"6,155.16 ",National Collections Group - Property Maintenance Programme,Annual Cyclical Work M & E,
20,DCMS,EH,06/11/2012,Sykes and Son Limited,0040014048,"18,189.60 ",National Collections Group - Capital Investment Programme,WIP Refurb & Fitting Out,
21,DCMS,EH,06/11/2012,Sykes and Son Limited,0040014048,"16,910.40 ",National Collections Group - Capital Investment Programme,WIP Refurb & Fitting Out,
22,DCMS,EH,06/11/2012,Sykes and Son Limited,0040014734,"34,200.00 ",National Collections Group - Property Maintenance Programme,Planned Maintenance,
23,DCMS,EH,17/09/2012,PAYE Stonework and Restoration Ltd,0040008783,"102,940.28 ",National Collections Group - Major Conservation Projects,Works for Heritage Buildings,
24,DCMS,EH,19/10/2012,PAYE Stonework and Restoration Ltd,0040010825,"25,826.47 ",National Collections Group - Major Conservation Projects,Works for Heritage Buildings,
25,DCMS,EH,19/10/2012,PAYE Stonework and Restoration Ltd,0040010825,"60,261.77 ",National Collections Group - Major Conservation Projects,WIP Operational Building Works,
26,DCMS,EH,13/11/2012,PAYE Stonework and Restoration Ltd,0040014053,"63,788.82 ",National Collections Group - Major Conservation Projects,Works for Heritage Buildings,
27,DCMS,EH,13/11/2012,PAYE Stonework and Restoration Ltd,0040014053,"148,840.56 ",National Collections Group - Major Conservation Projects,WIP Operational Building Works,
28,DCMS,EH,22/11/2012,PAYE Stonework and Restoration Ltd,0040014549,"56,368.08 ",National Collections Group - Major Conservation Projects,Works for Heritage Buildings,
29,DCMS,EH,19/11/2012,PAYE Stonework and Restoration Ltd,0040015705,"169,394.88 ",National Collections Group - Major Conservation Projects,Works for Heritage Buildings,
30,DCMS,EH,18/12/2012,PAYE Stonework and Restoration Ltd,0040018191,"152,637.44 ",National Collections Group - Major Conservation Projects,Works for Heritage Buildings,
31,DCMS,EH,18/12/2012,PAYE Stonework and Restoration Ltd,0040018191,"65,416.06 ",National Collections Group - Major Conservation Projects,WIP Operational Building Works,
32,DCMS,EH,28/09/2012,Past Pleasures Ltd,0040008779,"65,400.00 ",National Collections Group - Historic Properties Department,Exhibits/Displays,
33,DCMS,EH,01/10/2012,Gillards Worldwide,0040010359,"73,709.62 ",National Collections Group - Historic Properties Department,Storage & warehousing,
34,DCMS,EH,25/10/2012,Gillards Worldwide,0040012745,"49,059.14 ",National Collections Group - Historic Properties Department,Storage & warehousing,
35,DCMS,EH,28/11/2012,Gillards Worldwide,0040016011,"60,678.83 ",National Collections Group - Historic Properties Department,Storage & warehousing,
36,DCMS,EH,20/12/2012,Gillards Worldwide,0040018439,"32,434.06 ",National Collections Group - Historic Properties Department,Storage & warehousing,
37,DCMS,EH,08/10/2012,Rivermeade Signs Ltd,0040011660,"51,996.60 ",National Collections Group - Historic Properties Department,Signage,
38,DCMS,EH,10/09/2012,Historic Property Restoration Ltd,0040008817,"2,583.62 ",National Collections Group - Property Maintenance Programme,Annual Cyclical Works-Building,
39,DCMS,EH,10/09/2012,Historic Property Restoration Ltd,0040008817,"15,746.39 ",National Collections Group - Property Maintenance Programme,Annual Cyclical Works-Building,
40,DCMS,EH,10/09/2012,Historic Property Restoration Ltd,0040008817,"24,332.11 ",National Collections Group - Property Maintenance Programme,Annual Cyclical Work M & E,
41,DCMS,EH,10/09/2012,Historic Property Restoration Ltd,0040008817,400.69 ,National Collections Group - Property Maintenance Programme,Annual Cyclical Work M & E,
42,DCMS,EH,10/09/2012,Historic Property Restoration Ltd,0040008817,"1,880.52 ",National Collections Group - Property Maintenance Programme,Leased Accomodation Maint,
43,DCMS,EH,10/09/2012,Historic Property Restoration Ltd,0040008817,"1,285.59 ",National Collections Group - Property Maintenance Programme,Leased Accomodation Maint,
44,DCMS,EH,10/09/2012,Historic Property Restoration Ltd,0040008822,"2,347.14 ",National Collections Group - Property Maintenance Programme,Leased Accomodation Maint,
45,DCMS,EH,10/09/2012,Historic Property Restoration Ltd,0040008822,"16,579.92 ",National Collections Group - Property Maintenance Programme,Planned Maintenance,
46,DCMS,EH,10/09/2012,Historic Property Restoration Ltd,0040008822,66.76 ,National Collections Group - Property Maintenance Programme,Responsive Repairs M & E,
47,DCMS,EH,10/09/2012,Historic Property Restoration Ltd,0040008822,"15,938.59 ",National Collections Group - Property Maintenance Programme,Responsive Maint Building,
48,DCMS,EH,10/09/2012,Historic Property Restoration Ltd,0040008822,"9,825.62 ",National Collections Group - Property Maintenance Programme,Responsive Repairs M & E,
49,DCMS,EH,10/09/2012,Historic Property Restoration Ltd,0040008822,"3,852.72 ",National Collections Group - Property Maintenance Programme,Responsive Maint Building,
50,DCMS,EH,17/10/2012,Historic Property Restoration Ltd,0040011882,"11,871.88 ",National Collections Group - Property Maintenance Programme,Responsive Maint Building,
51,DCMS,EH,17/10/2012,Historic Property Restoration Ltd,0040011882,"2,466.08 ",National Collections Group - Property Maintenance Programme,Responsive Maint Building,
52,DCMS,EH,17/10/2012,Historic Property Restoration Ltd,0040011882,"1,684.26 ",National Collections Group - Property Maintenance Programme,Leased Accomodation Maint,
53,DCMS,EH,17/10/2012,Historic Property Restoration Ltd,0040011882,"1,093.49 ",National Collections Group - Property Maintenance Programme,Leased Accomodation Maint,
54,DCMS,EH,17/10/2012,Historic Property Restoration Ltd,0040011882,"3,171.97 ",National Collections Group - Property Maintenance Programme,Planned Maintenance,
55,DCMS,EH,17/10/2012,Historic Property Restoration Ltd,0040011882,"1,474.22 ",National Collections Group - Property Maintenance Programme,Planned Maintenance,
56,DCMS,EH,17/10/2012,Historic Property Restoration Ltd,0040011882,"5,925.71 ",National Collections Group - Property Maintenance Programme,Responsive Repairs M & E,
57,DCMS,EH,02/11/2012,Historic Property Restoration Ltd,0040014477,"14,181.32 ",National Collections Group - Property Maintenance Programme,Planned Maintenance,
58,DCMS,EH,02/11/2012,Historic Property Restoration Ltd,0040014477,"5,789.29 ",National Collections Group - Property Maintenance Programme,Responsive Maint Building,
59,DCMS,EH,02/11/2012,Historic Property Restoration Ltd,0040014477,"1,298.48 ",National Collections Group - Property Maintenance Programme,Responsive Maint Building,
60,DCMS,EH,02/11/2012,Historic Property Restoration Ltd,0040014477,"5,561.33 ",National Collections Group - Property Maintenance Programme,Responsive Repairs M & E,
61,DCMS,EH,02/11/2012,Historic Property Restoration Ltd,0040014477,791.14 ,National Collections Group - Property Maintenance Programme,Responsive Repairs M & E,
62,DCMS,EH,02/11/2012,Historic Property Restoration Ltd,0040014477,"1,241.21 ",National Collections Group - Property Maintenance Programme,Planned Maintenance,
63,DCMS,EH,02/11/2012,Historic Property Restoration Ltd,0040014477,969.23 ,National Collections Group - Property Maintenance Programme,Leased Accomodation Maint,
64,DCMS,EH,06/11/2012,Historic Property Restoration Ltd,0040014655,"6,185.81 ",National Collections Group - Property Maintenance Programme,Annual Cyclical Works-Building,
65,DCMS,EH,06/11/2012,Historic Property Restoration Ltd,0040014655,"23,092.20 ",National Collections Group - Property Maintenance Programme,Annual Cyclical Work M & E,
66,DCMS,EH,06/11/2012,Historic Property Restoration Ltd,0040014655,299.00 ,National Collections Group - Property Maintenance Programme,Annual Cyclical Work M & E,
67,DCMS,EH,06/11/2012,Historic Property Restoration Ltd,0040014655,"10,301.36 ",National Collections Group - Property Maintenance Programme,Annual Cyclical Works-Building,
68,DCMS,EH,06/11/2012,Historic Property Restoration Ltd,0040014655,93.21 ,National Collections Group - Property Maintenance Programme,Leased Accomodation Maint,
69,DCMS,EH,11/12/2012,Historic Property Restoration Ltd,0040017642,"15,118.18 ",National Collections Group - Property Maintenance Programme,Annual Cyclical Works-Building,
70,DCMS,EH,11/12/2012,Historic Property Restoration Ltd,0040017642,"7,297.39 ",National Collections Group - Property Maintenance Programme,Annual Cyclical Works-Building,
71,DCMS,EH,11/12/2012,Historic Property Restoration Ltd,0040017642,"28,619.08 ",National Collections Group - Property Maintenance Programme,Annual Cyclical Work M & E,
72,DCMS,EH,11/12/2012,Historic Property Restoration Ltd,0040017642,"1,032.11 ",National Collections Group - Property Maintenance Programme,Annual Cyclical Work M & E,
73,DCMS,EH,11/12/2012,Historic Property Restoration Ltd,0040017642,"3,938.16 ",National Collections Group - Property Maintenance Programme,Leased Accomodation Maint,
74,DCMS,EH,11/12/2012,Historic Property Restoration Ltd,0040017643,"7,412.21 ",National Collections Group - Property Maintenance Programme,Responsive Maint Building,
75,DCMS,EH,11/12/2012,Historic Property Restoration Ltd,0040017643,71.23 ,National Collections Group - Property Maintenance Programme,Responsive Maint Building,
76,DCMS,EH,11/12/2012,Historic Property Restoration Ltd,0040017643,"7,045.26 ",National Collections Group - Property Maintenance Programme,Responsive Repairs M & E,
77,DCMS,EH,11/12/2012,Historic Property Restoration Ltd,0040017643,"1,027.88 ",National Collections Group - Property Maintenance Programme,Responsive Repairs M & E,
78,DCMS,EH,11/12/2012,Historic Property Restoration Ltd,0040017643,"1,493.56 ",National Collections Group - Property Maintenance Programme,Leased Accomodation Maint,
79,DCMS,EH,11/12/2012,Historic Property Restoration Ltd,0040017643,"2,159.40 ",National Collections Group - Property Maintenance Programme,Leased Accomodation Maint,
80,DCMS,EH,11/12/2012,Historic Property Restoration Ltd,0040017643,"43,596.22 ",National Collections Group - Property Maintenance Programme,Planned Maintenance,
81,DCMS,EH,11/12/2012,Historic Property Restoration Ltd,0040017643,"2,403.96 ",National Collections Group - Property Maintenance Programme,Planned Maintenance,
82,DCMS,EH,11/09/2012,Ratcliffes,0040009229,"283,500.00 ",Resources Group - Office Estate,Rent - Operating Leases,
83,DCMS,EH,10/12/2012,Ratcliffes,0040017553,"283,500.00 ",Resources Group - Office Estate,Rent - Operating Leases,
84,DCMS,EH,08/10/2012,EDF Energy,0040008619,34.06 ,Resources Group - Human Resources Department,Electricity,
85,DCMS,EH,08/10/2012,EDF Energy,0040008619,"25,523.45 ",Resources Group - Human Resources Department,Electricity,
86,DCMS,EH,23/11/2012,EDF Energy,0040014872,"25,870.08 ",Resources Group - Human Resources Department,Electricity,
87,DCMS,EH,23/11/2012,EDF Energy,0040014872,47.52 ,Resources Group - Human Resources Department,Electricity,
88,DCMS,EH,19/12/2012,Capita IB Solutions (UK) Ltd,0040018517,"40,800.00 ",Resources Group - Finance & Procurement Dept,Software Maintenance,
89,DCMS,EH,19/12/2012,Capita IB Solutions (UK) Ltd,0040018517,"3,315.08 ",Resources Group - Finance & Procurement Dept,Software Maintenance,
90,DCMS,EH,09/11/2012,Sinclair Knight Merz (Europe) Ltd,0040014735,"46,572.00 ",National Collections Group - Capital Investment Programme,WIP Professional Works Advice,
91,DCMS,EH,11/09/2012,B Smith Packaging (Worcester) Ltd,0040008991,"11,224.39 ",National Collections Group - Historic Properties Department,Consumable materials,
92,DCMS,EH,11/09/2012,B Smith Packaging (Worcester) Ltd,0040008991,"7,738.66 ",National Collections Group - Historic Properties Department,Consumable materials,
93,DCMS,EH,11/09/2012,B Smith Packaging (Worcester) Ltd,0040008991,"14,623.56 ",National Collections Group - Historic Properties Department,Consumable materials,
94,DCMS,EH,10/09/2012,ISS Facility Services Ltd - Security,0040007047,"26,880.00 ",National Collections Group - Property Maintenance Programme,Security Guard & Monitor Stati,
95,DCMS,EH,10/10/2012,ISS Facility Services Ltd - Security,0040010564,"26,880.00 ",National Collections Group - Property Maintenance Programme,Security Guard & Monitor Stati,
96,DCMS,EH,15/11/2012,ISS Facility Services Ltd - Security,0040013572,"26,880.00 ",National Collections Group - Property Maintenance Programme,Security Guard & Monitor Stati,
97,DCMS,EH,05/12/2012,ISS Facility Services Ltd - Security,0040016350,"26,880.00 ",National Collections Group - Property Maintenance Programme,Security Guard & Monitor Stati,
98,DCMS,EH,16/10/2012,Archaeological Research Services,0040011201,"30,000.00 ",Heritage Protection & Planning Group - Heritage Protection Department,Hist Environ Prog Projects Gra,
99,DCMS,EH,03/10/2012,Enterprise Rent A Car UK Ltd,0020049226,"34,852.82 ",Resources Group - Corporate,Car Hire,
100,DCMS,EH,21/12/2012,Enterprise Rent A Car UK Ltd,0040018773,"39,930.64 ",Resources Group - Finance & Procurement Dept,Car Hire,
101,DCMS,EH,23/11/2012,Micros Retail Services UK Ltd,0040016503,"42,399.71 ",Resources Group - IMT Department,Software Maintenance,
102,DCMS,EH,10/10/2012,Academia Ltd,0040011973,"40,034.73 ",Resources Group - IMT Department,Software Maintenance,
103,DCMS,EH,28/09/2012,Atkins Mapping Solutions,0040010954,"30,870.00 ",National Collections Group - Head of Estates,Fees for Professional Advice,
104,DCMS,EH,12/11/2012,Evolve Design London Ltd,0040013303,"46,244.40 ",Heritage Protection & Planning Group - Nat. Planning & Conservation Department,Non stock publications,
105,DCMS,EH,24/09/2012,Talent Drain Ltd,0040009456,"27,600.00 ",Resources Group - Human Resources Department,Staff Survey and Actions,
106,DCMS,EH,29/11/2012,Pace Fuelcare Ltd,0040016031,"27,527.93 ",National Collections Group - Historic Properties Department,Gas & Oil,
107,DCMS,EH,26/09/2012,Seven,0040008849,"120,000.00 ",National Collections Group - Marketing Department,Marketing Publishing,
108,DCMS,EH,26/09/2012,Seven,0040010219,"59,526.00 ",National Collections Group - Marketing Department,Marketing Publishing,
109,DCMS,EH,26/09/2012,Seven,0040010219,"145,183.20 ",National Collections Group - Marketing Department,Marketing Publishing,
110,DCMS,EH,21/12/2012,Seven,0040017039,"163,069.20 ",National Collections Group - Marketing Department,Marketing Distribution,
111,DCMS,EH,17/12/2012,Seven,0040017106,"1,680.00 ",National Collections Group - Marketing Department,Consumer Photography,
112,DCMS,EH,17/12/2012,Seven,0040017106,"120,000.00 ",National Collections Group - Marketing Department,Marketing Creative,
113,DCMS,EH,28/11/2012,William Hardie Design,0040016593,"69,918.66 ",National Collections Group - Capital Investment Programme,WIP Operational Building Works,
114,DCMS,EH,08/11/2012,Coulson Group Ltd,0040010980,"74,962.40 ",National Collections Group - Capital Investment Programme,WIP Operational Building Works,
115,DCMS,EH,12/10/2012,Coulson Group Ltd,0040011722,"110,502.90 ",National Collections Group - Capital Investment Programme,WIP Refurb & Fitting Out,
116,DCMS,EH,03/12/2012,Fairhurst Ward Abbotts Ltd,0040016649,"57,375.89 ",National Collections Group - Major Conservation Projects,WIP Operational Building Works,
117,DCMS,EH,23/10/2012,Quadron Services Ltd,0040012963,"8,864.28 ",National Collections Group - Property Maintenance Programme,Annual Cyclical Works-Building,
118,DCMS,EH,23/10/2012,Quadron Services Ltd,0040012963,"7,247.42 ",National Collections Group - Property Maintenance Programme,Annual Cyclical Works-Building,
119,DCMS,EH,23/10/2012,Quadron Services Ltd,0040012963,"10,492.98 ",National Collections Group - Property Maintenance Programme,Annual Cyclical Works-Building,
120,DCMS,EH,04/09/2012,Capita Secure Information Solutions Ltd,0040008221,"251,629.36 ",Resources Group - IMT Department,ITFM,
121,DCMS,EH,04/09/2012,Capita Secure Information Solutions Ltd,0040008222,"251,629.36 ",Resources Group - IMT Department,ITFM,
122,DCMS,EH,12/09/2012,Capita Secure Information Solutions Ltd,0040009419,"79,567.08 ",Resources Group - IMT Department,ITFM,
123,DCMS,EH,02/11/2012,Capita Secure Information Solutions Ltd,0040013857,"93,672.94 ",Resources Group - IMT Department,ITFM,
124,DCMS,EH,07/11/2012,Capita Secure Information Solutions Ltd,0040014714,"251,629.36 ",Resources Group - IMT Department,ITFM,
125,DCMS,EH,07/11/2012,Capita Secure Information Solutions Ltd,0040014715,"251,629.36 ",Resources Group - IMT Department,ITFM,
126,DCMS,EH,11/12/2012,Capita Secure Information Solutions Ltd,0040017294,"251,629.36 ",Resources Group - IMT Department,ITFM,
127,DCMS,EH,11/12/2012,Capita Secure Information Solutions Ltd,0040017295,"251,629.36 ",Resources Group - IMT Department,ITFM,
128,DCMS,EH,31/10/2012,Wyndeham Web Ltd,0040012861,"22,614.54 ",National Collections Group - Marketing Department,Marketing Publishing,
129,DCMS,EH,31/10/2012,Wyndeham Web Ltd,0040012861,"3,036.42 ",National Collections Group - Marketing Department,Marketing Publishing,
130,DCMS,EH,11/09/2012,Shoosmiths,0040008126,"24,600.00 ",Heritage Protection & Planning Group - Nat. Planning & Conservation Department,Legal fees,
131,DCMS,EH,11/09/2012,Shoosmiths,0040008126,"4,075.14 ",Heritage Protection & Planning Group - Nat. Planning & Conservation Department,Legal fees,
132,DCMS,EH,11/09/2012,Shoosmiths,0040008126,1.00 ,Heritage Protection & Planning Group - Nat. Planning & Conservation Department,Legal fees,
133,DCMS,EH,27/09/2012,Jones Lang LaSalle Limited,0040010666,"8,827.80 ",Resources Group - Office Estate,Building Service Charges,
134,DCMS,EH,27/09/2012,Jones Lang LaSalle Limited,0040010666,"22,747.50 ",Resources Group - Office Estate,Rent - Operating Leases,
135,DCMS,EH,14/12/2012,Jones Lang LaSalle Limited,0040018066,"8,827.80 ",Resources Group - Office Estate,Building Service Charges,
136,DCMS,EH,14/12/2012,Jones Lang LaSalle Limited,0040018066,"22,747.50 ",Resources Group - Office Estate,Rent - Operating Leases,
137,DCMS,EH,10/09/2012,CB Richard Ellis Ltd,0040008566,"758,000.13 ",Resources Group - Office Estate,Rent - Operating Leases,
138,DCMS,EH,17/09/2012,CB Richard Ellis Ltd,0040009684,"235,500.00 ",Resources Group - Office Estate,Rent - Operating Leases,
139,DCMS,EH,17/09/2012,CB Richard Ellis Ltd,0040009684,"77,265.00 ",Resources Group - Office Estate,Building Service Charges,
140,DCMS,EH,17/09/2012,CB Richard Ellis Ltd,0040009686,"29,226.00 ",Resources Group - Office Estate,Building Service Charges,
141,DCMS,EH,17/09/2012,CB Richard Ellis Ltd,0040009686,"55,303.25 ",Resources Group - Office Estate,Rent - Operating Leases,
142,DCMS,EH,03/12/2012,CB Richard Ellis Ltd,0040016668,"190,974.00 ",Resources Group - Office Estate,Rent - Operating Leases,
143,DCMS,EH,17/12/2012,CB Richard Ellis Ltd,0040017910,"29,226.00 ",Resources Group - Office Estate,Building Service Charges,
144,DCMS,EH,17/12/2012,CB Richard Ellis Ltd,0040017910,"79,175.00 ",Resources Group - Office Estate,Rent - Operating Leases,
145,DCMS,EH,17/12/2012,CB Richard Ellis Ltd,0040017911,"77,265.00 ",Resources Group - Office Estate,Building Service Charges,
146,DCMS,EH,17/12/2012,CB Richard Ellis Ltd,0040017911,"235,500.00 ",Resources Group - Office Estate,Rent - Operating Leases,
147,DCMS,EH,06/09/2012,IFTech Ltd,0040008335,"55,260.00 ",National Collections Group - Capital Investment Programme,WIP Operational Building Works,
148,DCMS,EH,28/09/2012,Skanska Rashleigh Weatherfoil Ltd,0040011091,"61,022.40 ",National Collections Group - Curatorial Department,WIP Operational Building Works,
149,DCMS,EH,07/11/2012,Skanska Rashleigh Weatherfoil Ltd,0040012678,"74,884.80 ",National Collections Group - Curatorial Department,WIP Operational Building Works,
150,DCMS,EH,12/12/2012,Skanska Rashleigh Weatherfoil Ltd,0040015872,"147,266.40 ",National Collections Group - Curatorial Department,WIP Operational Building Works,
151,DCMS,EH,21/12/2012,Skanska Rashleigh Weatherfoil Ltd,0040018522,"102,495.60 ",National Collections Group - Curatorial Department,WIP Operational Building Works,
152,DCMS,EH,11/09/2012,Harlow Property Management Ltd,0040009230,"54,750.00 ",Resources Group - Office Estate,Rent - Operating Leases,
153,DCMS,EH,10/12/2012,Harlow Property Management Ltd,0040017310,"54,750.00 ",Resources Group - Office Estate,Rent - Operating Leases,
154,DCMS,EH,12/10/2012,Interserve Construction Ltd,0040007070,"218,040.00 ",National Collections Group - Capital Investment Programme,WIP Operational Building Works,
155,DCMS,EH,12/10/2012,Interserve Construction Ltd,0040007070,"3,348.00 ",National Collections Group - Capital Investment Programme,WIP Operational Building Works,
156,DCMS,EH,12/10/2012,Interserve Construction Ltd,0040007070,"1,306.80 ",National Collections Group - Capital Investment Programme,WIP Operational Building Works,
157,DCMS,EH,12/10/2012,Interserve Construction Ltd,0040007070,"3,240.00 ",National Collections Group - Capital Investment Programme,WIP Operational Building Works,
158,DCMS,EH,12/10/2012,Interserve Construction Ltd,0040007070,"1,800.00 ",National Collections Group - Capital Investment Programme,WIP Operational Building Works,
159,DCMS,EH,18/12/2012,Interserve Construction Ltd,0040017527,"27,245.10 ",National Collections Group - Capital Investment Programme,WIP Operational Building Works,
160,DCMS,EH,26/10/2012,Specialist Computer Centres plc,0040013559,"90,423.06 ",Resources Group - IMT Department,Software Licences > 10k,
161,DCMS,EH,19/09/2012,Messenger Construction Ltd,0040010002,"81,768.00 ",Heritage Protection & Planning Group - Nat. Planning & Conservation Department,Works for Heritage Buildings,
162,DCMS,EH,23/10/2012,Messenger Construction Ltd,0040012946,"116,112.00 ",Heritage Protection & Planning Group - Nat. Planning & Conservation Department,Works for Heritage Buildings,
163,DCMS,EH,23/11/2012,Messenger Construction Ltd,0040016214,"145,344.00 ",Heritage Protection & Planning Group - Nat. Planning & Conservation Department,Works for Heritage Buildings,
164,DCMS,EH,19/12/2012,Messenger Construction Ltd,0040018333,"136,440.00 ",Heritage Protection & Planning Group - Nat. Planning & Conservation Department,Works for Heritage Buildings,
165,DCMS,EH,14/09/2012,Vinci Construction UK Ltd,0040009175,"265,041.60 ",National Collections Group - Capital Investment Programme,WIP Operational Building Works,
166,DCMS,EH,14/09/2012,Vinci Construction UK Ltd,0040009175,"10,947.60 ",National Collections Group - Capital Investment Programme,WIP Operational Building Works,
167,DCMS,EH,14/09/2012,Vinci Construction UK Ltd,0040009175,"83,425.20 ",National Collections Group - Capital Investment Programme,Works for Heritage Buildings,
168,DCMS,EH,14/09/2012,Vinci Construction UK Ltd,0040009175,"(4,713.60)",National Collections Group - Capital Investment Programme,WIP Operational Building Works,
169,DCMS,EH,14/09/2012,Vinci Construction UK Ltd,0040009175,"5,889.60 ",National Collections Group - Capital Investment Programme,Works for Heritage Buildings,
170,DCMS,EH,14/09/2012,Vinci Construction UK Ltd,0040009175,"24,735.60 ",National Collections Group - Capital Investment Programme,WIP Professional Works Advice,
171,DCMS,EH,14/09/2012,Vinci Construction UK Ltd,0040009175,"5,078.40 ",National Collections Group - Capital Investment Programme,Works for Heritage Buildings,
172,DCMS,EH,14/09/2012,Vinci Construction UK Ltd,0040009175,968.40 ,National Collections Group - Capital Investment Programme,Works for Heritage Buildings,
173,DCMS,EH,14/09/2012,Vinci Construction UK Ltd,0040009175,"144,319.20 ",National Collections Group - Capital Investment Programme,Works for Heritage Buildings,
174,DCMS,EH,14/09/2012,Vinci Construction UK Ltd,0040009175,"5,211.60 ",National Collections Group - Capital Investment Programme,Works for Heritage Buildings,
175,DCMS,EH,17/10/2012,Vinci Construction UK Ltd,0040012905,757.20 ,National Collections Group - Capital Investment Programme,WIP Professional Works Advice,
176,DCMS,EH,17/10/2012,Vinci Construction UK Ltd,0040012905,"149,302.80 ",National Collections Group - Capital Investment Programme,Works for Heritage Buildings,
177,DCMS,EH,17/10/2012,Vinci Construction UK Ltd,0040012905,"359,853.60 ",National Collections Group - Capital Investment Programme,WIP Operational Building Works,
178,DCMS,EH,17/10/2012,Vinci Construction UK Ltd,0040012905,"2,764.80 ",National Collections Group - Capital Investment Programme,Works for Heritage Buildings,
179,DCMS,EH,17/10/2012,Vinci Construction UK Ltd,0040012905,"8,583.60 ",National Collections Group - Capital Investment Programme,Works for Heritage Buildings,
180,DCMS,EH,17/10/2012,Vinci Construction UK Ltd,0040012905,"154,326.00 ",National Collections Group - Capital Investment Programme,Works for Heritage Buildings,
181,DCMS,EH,17/10/2012,Vinci Construction UK Ltd,0040012905,"16,785.60 ",National Collections Group - Capital Investment Programme,Works for Heritage Buildings,
182,DCMS,EH,17/10/2012,Vinci Construction UK Ltd,0040012905,"5,090.40 ",National Collections Group - Capital Investment Programme,WIP Operational Building Works,
183,DCMS,EH,17/10/2012,Vinci Construction UK Ltd,0040012905,"418,759.20 ",National Collections Group - Capital Investment Programme,WIP Operational Building Works,
184,DCMS,EH,17/10/2012,Vinci Construction UK Ltd,0040012905,"4,656.00 ",National Collections Group - Capital Investment Programme,WIP Operational Building Works,
185,DCMS,EH,09/11/2012,Vinci Construction UK Ltd,0040015151,"16,878.00 ",National Collections Group - Capital Investment Programme,WIP Professional Works Advice,
186,DCMS,EH,09/11/2012,Vinci Construction UK Ltd,0040015151,"8,583.60 ",National Collections Group - Capital Investment Programme,Works for Heritage Buildings,
187,DCMS,EH,09/11/2012,Vinci Construction UK Ltd,0040015151,"149,740.80 ",National Collections Group - Capital Investment Programme,Works for Heritage Buildings,
188,DCMS,EH,09/11/2012,Vinci Construction UK Ltd,0040015151,"54,188.40 ",National Collections Group - Capital Investment Programme,WIP Operational Building Works,
189,DCMS,EH,09/11/2012,Vinci Construction UK Ltd,0040015151,"116,096.40 ",National Collections Group - Capital Investment Programme,WIP Operational Building Works,
190,DCMS,EH,09/11/2012,Vinci Construction UK Ltd,0040015151,"20,360.40 ",National Collections Group - Capital Investment Programme,WIP Operational Building Works,
191,DCMS,EH,09/11/2012,Vinci Construction UK Ltd,0040015151,"323,034.00 ",National Collections Group - Capital Investment Programme,WIP Operational Building Works,
192,DCMS,EH,09/11/2012,Vinci Construction UK Ltd,0040015151,"55,216.80 ",National Collections Group - Capital Investment Programme,Works for Heritage Buildings,
193,DCMS,EH,09/11/2012,Vinci Construction UK Ltd,0040015151,698.40 ,National Collections Group - Capital Investment Programme,Works for Heritage Buildings,
194,DCMS,EH,09/11/2012,Vinci Construction UK Ltd,0040015151,"20,198.40 ",National Collections Group - Capital Investment Programme,WIP Operational Building Works,
195,DCMS,EH,11/12/2012,Vinci Construction UK Ltd,0040017196,"91,609.20 ",National Collections Group - Capital Investment Programme,WIP Operational Building Works,
196,DCMS,EH,11/12/2012,Vinci Construction UK Ltd,0040017196,"65,905.20 ",National Collections Group - Capital Investment Programme,WIP Operational Building Works,
197,DCMS,EH,11/12/2012,Vinci Construction UK Ltd,0040017196,"67,551.60 ",National Collections Group - Capital Investment Programme,WIP Operational Building Works,
198,DCMS,EH,11/12/2012,Vinci Construction UK Ltd,0040017196,"16,839.60 ",National Collections Group - Capital Investment Programme,WIP Professional Works Advice,
199,DCMS,EH,11/12/2012,Vinci Construction UK Ltd,0040017196,"56,715.60 ",National Collections Group - Capital Investment Programme,Works for Heritage Buildings,
200,DCMS,EH,11/12/2012,Vinci Construction UK Ltd,0040017196,"3,927.60 ",National Collections Group - Capital Investment Programme,Works for Heritage Buildings,
201,DCMS,EH,11/12/2012,Vinci Construction UK Ltd,0040017196,"60,193.20 ",National Collections Group - Capital Investment Programme,Works for Heritage Buildings,
202,DCMS,EH,11/12/2012,Vinci Construction UK Ltd,0040017196,"8,583.60 ",National Collections Group - Capital Investment Programme,Works for Heritage Buildings,
203,DCMS,EH,11/12/2012,Vinci Construction UK Ltd,0040017196,"262,450.80 ",National Collections Group - Capital Investment Programme,WIP Operational Building Works,
204,DCMS,EH,11/12/2012,Vinci Construction UK Ltd,0040017488,"82,527.60 ",National Collections Group - Capital Investment Programme,WIP Operational Building Works,
205,DCMS,EH,02/11/2012,TNS UK Ltd,0040014437,"90,000.00 ",National Collections Group - Marketing Department,Market Research,
206,DCMS,EH,12/10/2012,Holemasters Demtech Ltd,0040011342,"3,600.00 ",National Collections Group - Major Conservation Projects,Works for Heritage Buildings,
207,DCMS,EH,12/10/2012,Holemasters Demtech Ltd,0040011342,"15,600.00 ",National Collections Group - Major Conservation Projects,Works for Heritage Buildings,
208,DCMS,EH,12/10/2012,Holemasters Demtech Ltd,0040011342,"6,202.62 ",National Collections Group - Major Conservation Projects,Works for Heritage Buildings,
209,DCMS,EH,16/10/2012,Holemasters Demtech Ltd,0040012092,"5,944.51 ",National Collections Group - Major Conservation Projects,Works for Heritage Buildings,
210,DCMS,EH,16/10/2012,Holemasters Demtech Ltd,0040012092,"24,683.03 ",National Collections Group - Major Conservation Projects,Works for Heritage Buildings,
211,DCMS,EH,16/10/2012,Holemasters Demtech Ltd,0040012092,686.64 ,National Collections Group - Major Conservation Projects,Works for Heritage Buildings,
212,DCMS,EH,19/11/2012,Trevor Jones Contracting,0040015345,864.00 ,Resources Group - Office Estate,Planned Maintenance,
213,DCMS,EH,19/11/2012,Trevor Jones Contracting,0040015345,"2,634.00 ",Heritage Protection & Planning Group - Heritage Protection Department,Plant & Vehicles <10k,
214,DCMS,EH,19/11/2012,Trevor Jones Contracting,0040015345,"21,917.22 ",Resources Group - Office Estate,Planned Maintenance,
215,DCMS,EH,19/11/2012,Trevor Jones Contracting,0040015345,"4,320.00 ",Resources Group - Office Estate,Planned Maintenance,
216,DCMS,EH,19/11/2012,Trevor Jones Contracting,0040015345,"14,658.00 ",Heritage Protection & Planning Group - Heritage Protection Department,Plant & Vehicles <10k,
217,DCMS,EH,17/12/2012,Devlin Decorators Ltd,0040018137,"36,174.00 ",National Collections Group - Property Maintenance Programme,Planned Maintenance,
218,DCMS,EH,30/11/2012,ENTERPRISE RENT-A-CAR UK LTD,0020049918,"47,478.54 ",Resources Group - Corporate,Car Hire,
219,DCMS,EH,07/12/2012,Save Britains Heritage,0090513470,"23,000.00 ",Heritage Protection & Planning Group - Nat. Planning & Conservation Department,GRANTS PAYABLE - OTHER GRANTS,
220,DCMS,EH,07/12/2012,Save Britains Heritage,0090513470,"5,000.00 ",Heritage Protection & Planning Group - Nat. Planning & Conservation Department,GRANTS PAYABLE - OTHER GRANTS,
221,DCMS,EH,21/09/2012,Worthing Dome and Regeneration Tst,0090513413,"25,000.00 ",Heritage Protection & Planning Group - Nat. Planning & Conservation Department,GRANTS PAYABLE - HISTORIC BUILDINGS,
222,DCMS,EH,31/10/2012,The National Trust Wiltshire,0090700038,"60,325.00 ",Heritage Protection & Planning Group - Nat. Planning & Conservation Department,GRANTS PAYABLE - OTHER GRANTS,
223,DCMS,EH,07/09/2012,Hadrian's Wall Trust,0090513402,"55,629.00 ",Heritage Protection & Planning Group - Nat. Planning & Conservation Department,GRANTS PAYABLE - OTHER GRANTS,
224,DCMS,EH,25/10/2012,Hadrian's Wall Trust,0090700023,"55,629.00 ",Heritage Protection & Planning Group - Nat. Planning & Conservation Department,GRANTS PAYABLE - OTHER GRANTS,
225,DCMS,EH,12/11/2012,Wolverhampton City Council,0090513438,"86,583.00 ",Heritage Protection & Planning Group - Nat. Planning & Conservation Department,GRANTS PAYABLE - AREA,
226,DCMS,EH,12/10/2012,Stoke - On - Trent  City Council,0090513426,"31,615.00 ",Heritage Protection & Planning Group - Nat. Planning & Conservation Department,GRANTS PAYABLE - AREA,
227,DCMS,EH,19/11/2012,London Borough of Havering,0090513453,"26,100.00 ",Heritage Protection & Planning Group - Nat. Planning & Conservation Department,GRANTS PAYABLE - AREA,
228,DCMS,EH,10/12/2012,South Holland District Council,0090513480,"27,047.00 ",Heritage Protection & Planning Group - Nat. Planning & Conservation Department,GRANTS PAYABLE - AREA,
229,DCMS,EH,19/12/2012,York City Council,0090700069,"42,430.00 ",Heritage Protection & Planning Group - Nat. Planning & Conservation Department,GRANTS PAYABLE - OTHER GRANTS,
230,DCMS,EH,05/11/2012,Cowdray Heitage Trust,0090700045,"25,370.94 ",Heritage Protection & Planning Group - Nat. Planning & Conservation Department,GRANTS PAYABLE - HISTORIC BUILDINGS,
231,DCMS,EH,07/12/2012,The Architectural Heritage Fund,0090513472,"66,739.00 ",Heritage Protection & Planning Group - Nat. Planning & Conservation Department,GRANTS PAYABLE - OTHER GRANTS,
232,DCMS,EH,17/12/2012,Yorkshire Dales National Park,0090700062,"31,500.00 ",Heritage Protection & Planning Group - Nat. Planning & Conservation Department,GRANTS PAYABLE - OTHER GRANTS,
233,DCMS,EH,26/10/2012,Historic Environment Service,0081002163,"39,552.77 ",Heritage Protection & Planning Group - Heritage Protection Department,Historic Environ Prog Grants,
234,DCMS,EH,14/11/2012,Cotswold Archaeology,0081002187,"30,000.00 ",Heritage Protection & Planning Group - Heritage Protection Department,Historic Environ Prog Grants,
235,DCMS,EH,14/11/2012,Museum of London Arch Services,0081002181,"50,000.00 ",Heritage Protection & Planning Group - Heritage Protection Department,Historic Environ Prog Grants,
236,DCMS,EH,26/09/2012,Council British Arch York,0081002135,"30,000.00 ",Heritage Protection & Planning Group - Heritage Protection Department,Historic Environ Prog Grants,
237,DCMS,EH,18/12/2012,Council British Arch York,0081002218,"25,278.00 ",Heritage Protection & Planning Group - Heritage Protection Department,Historic Environ Prog Grants,
238,DCMS,EH,19/10/2012,Southwark Borough Council,0090513432,"50,000.00 ",Heritage Protection & Planning Group - Nat. Planning & Conservation Department,GRANTS PAYABLE - AREA,
239,DCMS,EH,31/10/2012,City Of Stoke On Trent,0081002176,"45,000.00 ",Heritage Protection & Planning Group - Heritage Protection Department,Historic Environ Prog Grants,
240,DCMS,EH,21/12/2012,London Borough of Camden,0082000952,"31,948.00 ",Heritage Protection & Planning Group - Nat. Planning & Conservation Department,GRANTS PAYABLE - HISTORIC BUILDINGS
241,DCMS,EH,26/10/2012,Assemblies of the First Born,0082000735,"61,600.00 ",Heritage Protection & Planning Group - Nat. Planning & Conservation Department,GRANTS PAYABLE - PLACES OF WORSHIP
242,DCMS,EH,13/09/2012,L B Alexandra Park & Palace,0082000573,"40,760.00 ",Heritage Protection & Planning Group - Nat. Planning & Conservation Department,GRANTS PAYABLE - HISTORIC BUILDINGS
243,DCMS,EH,19/09/2012,Historic Chapels Trust,0090513409,"25,429.00 ",Heritage Protection & Planning Group - Nat. Planning & Conservation Department,GRANTS PAYABLE - OTHER GRANTS
244,DCMS,EH,31/10/2012,Historic Chapels Trust,0090700039,"25,853.00 ",Heritage Protection & Planning Group - Nat. Planning & Conservation Department,GRANTS PAYABLE - OTHER GRANTS
245,DCMS,EH,23/10/2012,Highhead Castle,0082000720,"68,995.00 ",Heritage Protection & Planning Group - Nat. Planning & Conservation Department,GRANTS PAYABLE - HISTORIC BUILDINGS
246,DCMS,EH,26/11/2012,PCC St Mary the Virgin Newington,0082000822,"26,000.00 ",Heritage Protection & Planning Group - Nat. Planning & Conservation Department,GRANTS PAYABLE - PLACES OF WORSHIP
247,DCMS,EH,21/11/2012,St Mary's Church Sprotborough PCC,0082000801,"40,049.00 ",Heritage Protection & Planning Group - Nat. Planning & Conservation Department,GRANTS PAYABLE - PLACES OF WORSHIP
248,DCMS,EH,28/09/2012,Bolton on Swale PCC,0082000640,"51,000.00 ",Heritage Protection & Planning Group - Nat. Planning & Conservation Department,GRANTS PAYABLE - PLACES OF WORSHIP
249,DCMS,EH,26/11/2012,Bolton on Swale PCC,0082000821,"45,900.00 ",Heritage Protection & Planning Group - Nat. Planning & Conservation Department,GRANTS PAYABLE - PLACES OF WORSHIP
250,DCMS,EH,07/12/2012,St Mary Radcliffe PCC,0082000857,"54,464.00 ",Heritage Protection & Planning Group - Nat. Planning & Conservation Department,GRANTS PAYABLE - PLACES OF WORSHIP
251,DCMS,EH,17/09/2012,St Augustines PCC Forest Hill,0082000590,"79,500.00 ",Heritage Protection & Planning Group - Nat. Planning & Conservation Department,GRANTS PAYABLE - PLACES OF WORSHIP
252,DCMS,EH,12/11/2012,St Augustines PCC Forest Hill,0082000766,"71,550.00 ",Heritage Protection & Planning Group - Nat. Planning & Conservation Department,GRANTS PAYABLE - PLACES OF WORSHIP
253,DCMS,EH,21/11/2012,Sowerby PCC,0082000807,"49,050.00 ",Heritage Protection & Planning Group - Nat. Planning & Conservation Department,GRANTS PAYABLE - PLACES OF WORSHIP
254,DCMS,EH,12/10/2012,Ordsall St Clements PCC,0082000684,"93,500.00 ",Heritage Protection & Planning Group - Nat. Planning & Conservation Department,GRANTS PAYABLE - PLACES OF WORSHIP
255,DCMS,EH,10/10/2012,PCC of St John & St Luke Clay Hill,0082000677,"47,500.00 ",Heritage Protection & Planning Group - Nat. Planning & Conservation Department,GRANTS PAYABLE - PLACES OF WORSHIP
256,DCMS,EH,12/10/2012,St Nicholas Church Halewood,0082000685,"29,250.00 ",Heritage Protection & Planning Group - Nat. Planning & Conservation Department,GRANTS PAYABLE - PLACES OF WORSHIP
257,DCMS,EH,17/09/2012,St Thomas Church Stockston Heath,0082000593,"79,500.00 ",Heritage Protection & Planning Group - Nat. Planning & Conservation Department,GRANTS PAYABLE - PLACES OF WORSHIP
258,DCMS,EH,21/12/2012,St Thomas Church Stockston Heath,0082000953,"71,550.00 ",Heritage Protection & Planning Group - Nat. Planning & Conservation Department,GRANTS PAYABLE - PLACES OF WORSHIP
259,DCMS,EH,19/09/2012,Ickworth Church Conservation Trust,0082000601,"57,600.00 ",Heritage Protection & Planning Group - Nat. Planning & Conservation Department,GRANTS PAYABLE - HISTORIC BUILDINGS
260,DCMS,EH,26/11/2012,Ickworth Church Conservation Trust,0082000812,"57,600.00 ",Heritage Protection & Planning Group - Nat. Planning & Conservation Department,GRANTS PAYABLE - HISTORIC BUILDINGS
261,DCMS,EH,13/12/2012,Pendle Borough Council,0090513486,"35,338.00 ",Heritage Protection & Planning Group - Nat. Planning & Conservation Department,GRANTS PAYABLE - AREA
262,DCMS,EH,26/10/2012,Pendle Borough Council,0090700028,"49,634.00 ",Heritage Protection & Planning Group - Nat. Planning & Conservation Department,GRANTS PAYABLE - AREA
263,DCMS,EH,10/10/2012,St James PCC,0082000675,"64,000.00 ",Heritage Protection & Planning Group - Nat. Planning & Conservation Department,GRANTS PAYABLE - PLACES OF WORSHIP
264,DCMS,EH,18/12/2012,St James PCC,0082000925,"32,000.00 ",Heritage Protection & Planning Group - Nat. Planning & Conservation Department,GRANTS PAYABLE - PLACES OF WORSHIP
265,DCMS,EH,17/09/2012,St Marys Stockport PCC,0082000582,"101,500.00 ",Heritage Protection & Planning Group - Nat. Planning & Conservation Department,GRANTS PAYABLE - PLACES OF WORSHIP
266,DCMS,EH,21/09/2012,Order of Friars Minor Conventual,0082000616,"71,600.00 ",Heritage Protection & Planning Group - Nat. Planning & Conservation Department,GRANTS PAYABLE - PLACES OF WORSHIP
267,DCMS,EH,21/09/2012,Wentworth Castle Stainborough Park,0082000614,"89,775.00 ",Heritage Protection & Planning Group - Nat. Planning & Conservation Department,GRANTS PAYABLE - HISTORIC BUILDINGS
268,DCMS,EH,21/11/2012,Stockton on Tees Borough Council,0090513459,"25,722.00 ",Heritage Protection & Planning Group - Nat. Planning & Conservation Department,GRANTS PAYABLE - AREA
269,DCMS,EH,14/12/2012,Heritage of London Trust Ops Ltd,0082000905,"65,000.00 ",Heritage Protection & Planning Group - Nat. Planning & Conservation Department,GRANTS PAYABLE - HISTORIC BUILDINGS
270,DCMS,EH,10/10/2012,St James Heckmondwike PCC,0082000679,"50,500.00 ",Heritage Protection & Planning Group - Nat. Planning & Conservation Department,GRANTS PAYABLE - PLACES OF WORSHIP
271,DCMS,EH,26/10/2012,Local Management Comm PCM Reading,0082000729,"53,230.00 ",Heritage Protection & Planning Group - Nat. Planning & Conservation Department,GRANTS PAYABLE - PLACES OF WORSHIP
272,DCMS,EH,26/10/2012,Cullompton Walronds Preserv Trust,0082000722,"27,000.00 ",Heritage Protection & Planning Group - Nat. Planning & Conservation Department,GRANTS PAYABLE - HISTORIC BUILDINGS
273,DCMS,EH,03/10/2012,Suffolk County Council,0082000651,"46,575.00 ",Heritage Protection & Planning Group - Nat. Planning & Conservation Department,GRANTS PAYABLE - HISTORIC BUILDINGS
274,DCMS,EH,03/10/2012,Suffolk County Council,0082000652,"25,605.00 ",Heritage Protection & Planning Group - Nat. Planning & Conservation Department,GRANTS PAYABLE - HISTORIC BUILDINGS
275,DCMS,EH,28/09/2012,Heritage Trust of Lincolnshire,0082000635,"33,880.00 ",Heritage Protection & Planning Group - Nat. Planning & Conservation Department,GRANTS PAYABLE - HISTORIC BUILDINGS
276,DCMS,EH,21/12/2012,The Vivat Trust Ltd,0082000973,"50,000.00 ",Heritage Protection & Planning Group - Nat. Planning & Conservation Department,GRANTS PAYABLE - HISTORIC BUILDINGS
277,DCMS,EH,25/09/2012,St Mary Magdalene PCC Paddington,0082000627,"100,500.00 ",Heritage Protection & Planning Group - Nat. Planning & Conservation Department,GRANTS PAYABLE - PLACES OF WORSHIP
278,DCMS,EH,30/11/2012,St Mary Magdalene PCC Paddington,0082000835,"90,450.00 ",Heritage Protection & Planning Group - Nat. Planning & Conservation Department,GRANTS PAYABLE - PLACES OF WORSHIP
279,DCMS,EH,14/12/2012,PCC of Lower Beeding,0082000893,"35,500.00 ",Heritage Protection & Planning Group - Nat. Planning & Conservation Department,GRANTS PAYABLE - PLACES OF WORSHIP
280,DCMS,EH,05/10/2012,Fifehead Magdalen Church Roof Fund,0082000666,"31,500.00 ",Heritage Protection & Planning Group - Nat. Planning & Conservation Department,GRANTS PAYABLE - PLACES OF WORSHIP
281,DCMS,EH,07/12/2012,Fifehead Magdalen Church Roof Fund,0082000869,"28,350.00 ",Heritage Protection & Planning Group - Nat. Planning & Conservation Department,GRANTS PAYABLE - PLACES OF WORSHIP
282,DCMS,EH,07/12/2012,St Paul's Parochial Church Council,0082000864,"35,620.00 ",Heritage Protection & Planning Group - Nat. Planning & Conservation Department,GRANTS PAYABLE - PLACES OF WORSHIP
283,DCMS,EH,18/12/2012,Moggerhanger Hs Preservation Trust,0082000938,"26,581.00 ",Heritage Protection & Planning Group - Nat. Planning & Conservation Department,GRANTS PAYABLE - HISTORIC BUILDINGS
284,DCMS,EH,26/11/2012,Derbyshire County Council,0082000827,"125,000.00 ",Heritage Protection & Planning Group - Nat. Planning & Conservation Department,GRANTS PAYABLE - HISTORIC BUILDINGS
285,DCMS,EH,28/09/2012,St Peter's Parochial Church Council,0082000644,"32,398.00 ",Heritage Protection & Planning Group - Nat. Planning & Conservation Department,GRANTS PAYABLE - PLACES OF WORSHIP
286,DCMS,EH,13/09/2012,Yeldersley Estate,0082000561,"37,111.00 ",Heritage Protection & Planning Group - Nat. Planning & Conservation Department,GRANTS PAYABLE - HISTORIC BUILDINGS
287,DCMS,EH,17/09/2012,Norfolk Churches Trust,0082000599,"27,396.00 ",Heritage Protection & Planning Group - Nat. Planning & Conservation Department,GRANTS PAYABLE - HISTORIC BUILDINGS
288,DCMS,EH,02/11/2012,Norfolk Churches Trust,0082000745,"27,395.00 ",Heritage Protection & Planning Group - Nat. Planning & Conservation Department,GRANTS PAYABLE - HISTORIC BUILDINGS
289,DCMS,EH,16/11/2012,Trustees of Firle Est Settlement,0082000792,"75,000.00 ",Heritage Protection & Planning Group - Nat. Planning & Conservation Department,GRANTS PAYABLE - HISTORIC BUILDINGS
290,DCMS,EH,19/09/2012,The Wolfeton Riding House Trust,0082000609,"27,776.00 ",Heritage Protection & Planning Group - Nat. Planning & Conservation Department,GRANTS PAYABLE - HISTORIC BUILDINGS
291,DCMS,EH,07/12/2012,The Wolfeton Riding House Trust,0082000874,"33,024.00 ",Heritage Protection & Planning Group - Nat. Planning & Conservation Department,GRANTS PAYABLE - HISTORIC BUILDINGS
292,DCMS,EH,07/12/2012,The Wolfeton Riding House Trust,0082000875,"30,400.00 ",Heritage Protection & Planning Group - Nat. Planning & Conservation Department,GRANTS PAYABLE - HISTORIC BUILDINGS
293,DCMS,EH,30/11/2012,Haworth PCC,0082000838,"25,589.00 ",Heritage Protection & Planning Group - Nat. Planning & Conservation Department,GRANTS PAYABLE - PLACES OF WORSHIP
294,DCMS,EH,17/09/2012,North Moreton PCC,0082000587,"62,000.00 ",Heritage Protection & Planning Group - Nat. Planning & Conservation Department,GRANTS PAYABLE - PLACES OF WORSHIP
295,DCMS,EH,21/12/2012,North Moreton PCC,0082000947,"46,000.00 ",Heritage Protection & Planning Group - Nat. Planning & Conservation Department,GRANTS PAYABLE - PLACES OF WORSHIP
296,DCMS,EH,13/09/2012,Stanton Lacy PCC,0082000563,"58,500.00 ",Heritage Protection & Planning Group - Nat. Planning & Conservation Department,GRANTS PAYABLE - PLACES OF WORSHIP
297,DCMS,EH,18/12/2012,Stanton Lacy PCC,0082000910,"45,500.00 ",Heritage Protection & Planning Group - Nat. Planning & Conservation Department,GRANTS PAYABLE - PLACES OF WORSHIP
298,DCMS,EH,21/12/2012,PCC of Church of the Epiphany,0082000949,"76,050.00 ",Heritage Protection & Planning Group - Nat. Planning & Conservation Department,GRANTS PAYABLE - PLACES OF WORSHIP
299,DCMS,EH,18/12/2012,St Peter's IPC Trust Corporation,0082000913,"52,200.00 ",Heritage Protection & Planning Group - Nat. Planning & Conservation Department,GRANTS PAYABLE - PLACES OF WORSHIP
300,DCMS,EH,17/09/2012,PCC of St John the Evangelist,0082000580,"38,937.00 ",Heritage Protection & Planning Group - Nat. Planning & Conservation Department,GRANTS PAYABLE - PLACES OF WORSHIP
301,DCMS,EH,18/12/2012,"St Martins, Owsten Ferry PCC",0082000924,"42,300.00 ",Heritage Protection & Planning Group - Nat. Planning & Conservation Department,GRANTS PAYABLE - PLACES OF WORSHIP
302,DCMS,EH,07/09/2012,"St Marys Church, Wallington PCC",0082000551,"44,000.00 ",Heritage Protection & Planning Group - Nat. Planning & Conservation Department,GRANTS PAYABLE - PLACES OF WORSHIP
303,DCMS,EH,14/12/2012,"St Marys Church, Wallington PCC",0082000889,"28,600.00 ",Heritage Protection & Planning Group - Nat. Planning & Conservation Department,GRANTS PAYABLE - PLACES OF WORSHIP
304,DCMS,EH,30/11/2012,"PCC of The Chapel Royal, Brighton",0082000836,"45,000.00 ",Heritage Protection & Planning Group - Nat. Planning & Conservation Department,GRANTS PAYABLE - PLACES OF WORSHIP
305,DCMS,EH,13/09/2012,Borlase Smart John Wells Trust Ltd,0082000570,"50,000.00 ",Heritage Protection & Planning Group - Nat. Planning & Conservation Department,GRANTS PAYABLE - HISTORIC BUILDINGS
306,DCMS,EH,28/11/2012,Borlase Smart John Wells Trust Ltd,0082000832,"30,000.00 ",Heritage Protection & Planning Group - Nat. Planning & Conservation Department,GRANTS PAYABLE - HISTORIC BUILDINGS
307,DCMS,EH,16/11/2012,"St Michael's, Handsworth PCC",0082000784,"35,500.00 ",Heritage Protection & Planning Group - Nat. Planning & Conservation Department,GRANTS PAYABLE - PLACES OF WORSHIP
308,DCMS,EH,21/09/2012,Trustees of Melbourne Trust Fund,0082000615,"40,913.00 ",Heritage Protection & Planning Group - Nat. Planning & Conservation Department,GRANTS PAYABLE - HISTORIC BUILDINGS
309,DCMS,EH,26/11/2012,Trustees of Melbourne Trust Fund,0082000815,"32,730.00 ",Heritage Protection & Planning Group - Nat. Planning & Conservation Department,GRANTS PAYABLE - HISTORIC BUILDINGS
310,DCMS,EH,03/10/2012,PCC of St Catherine's Church,0082000648,"236,800.00 ",Heritage Protection & Planning Group - Nat. Planning & Conservation Department,GRANTS PAYABLE - PLACES OF WORSHIP
311,DCMS,EH,26/10/2012,PCC of St George with Anne & ST Mark,0082000728,"30,150.00 ",Heritage Protection & Planning Group - Nat. Planning & Conservation Department,GRANTS PAYABLE - PLACES OF WORSHIP
312,DCMS,EH,12/10/2012,PCC of Christ Church West Didsbury,0082000688,"58,000.00 ",Heritage Protection & Planning Group - Nat. Planning & Conservation Department,GRANTS PAYABLE - PLACES OF WORSHIP
313,DCMS,EH,05/10/2012,Preston Seventh Day Adventist Church,0082000665,"85,000.00 ",Heritage Protection & Planning Group - Nat. Planning & Conservation Department,GRANTS PAYABLE - PLACES OF WORSHIP
314,DCMS,EH,10/10/2012,PCC Christchurch Parracombe,0082000678,"68,000.00 ",Heritage Protection & Planning Group - Nat. Planning & Conservation Department,GRANTS PAYABLE - PLACES OF WORSHIP
315,DCMS,EH,26/11/2012,PCC of St Stephen's Church,0082000826,"64,500.00 ",Heritage Protection & Planning Group - Nat. Planning & Conservation Department,GRANTS PAYABLE - PLACES OF WORSHIP
316,DCMS,EH,12/12/2012,The Corporate Body of Lincoln Cathedral,0082000879,"62,500.00 ",Heritage Protection & Planning Group - Nat. Planning & Conservation Department,GRANTS PAYABLE - HISTORIC BUILDINGS
317,DCMS,EH,26/11/2012,Scarborough Studios Ltd,0082000816,"25,000.00 ",Heritage Protection & Planning Group - Nat. Planning & Conservation Department,GRANTS PAYABLE - HISTORIC BUILDINGS
318,DCMS,EH,30/11/2012,North of England Civic Trust,0082000837,"33,806.00 ",Heritage Protection & Planning Group - Nat. Planning & Conservation Department,GRANTS PAYABLE - HISTORIC BUILDINGS
319,DCMS,EH,26/10/2012,Cradley Heath Baptist Church,0082000730,"48,500.00 ",Heritage Protection & Planning Group - Nat. Planning & Conservation Department,GRANTS PAYABLE - PLACES OF WORSHIP
320,DCMS,EH,26/10/2012,Stockbury Parochial Church Council,0082000732,"58,341.00 ",Heritage Protection & Planning Group - Nat. Planning & Conservation Department,GRANTS PAYABLE - PLACES OF WORSHIP
321,DCMS,EH,03/10/2012,Walpole St Peter PCC,0082000647,"43,000.00 ",Heritage Protection & Planning Group - Nat. Planning & Conservation Department,GRANTS PAYABLE - PLACES OF WORSHIP
322,DCMS,EH,07/09/2012,PCC of Checkendon,0082000550,"54,000.00 ",Heritage Protection & Planning Group - Nat. Planning & Conservation Department,GRANTS PAYABLE - PLACES OF WORSHIP
323,DCMS,EH,21/11/2012,PCC of Checkendon,0082000796,"43,090.00 ",Heritage Protection & Planning Group - Nat. Planning & Conservation Department,GRANTS PAYABLE - PLACES OF WORSHIP
324,DCMS,EH,07/12/2012,St Giles PCC,0082000858,"38,800.00 ",Heritage Protection & Planning Group - Nat. Planning & Conservation Department,GRANTS PAYABLE - PLACES OF WORSHIP
325,DCMS,EH,26/11/2012,PCC of Norbury,0082000819,"56,250.00 ",Heritage Protection & Planning Group - Nat. Planning & Conservation Department,GRANTS PAYABLE - PLACES OF WORSHIP
326,DCMS,EH,26/11/2012,"All Saint's, Eyeworth PCC",0082000820,"35,500.00 ",Heritage Protection & Planning Group - Nat. Planning & Conservation Department,GRANTS PAYABLE - PLACES OF WORSHIP
327,DCMS,EH,17/09/2012,St Peter's PCC,0082000577,"58,950.00 ",Heritage Protection & Planning Group - Nat. Planning & Conservation Department,GRANTS PAYABLE - PLACES OF WORSHIP
328,DCMS,EH,21/12/2012,PCC of the Parish of Wanstead,0082000943,"62,100.00 ",Heritage Protection & Planning Group - Nat. Planning & Conservation Department,GRANTS PAYABLE - PLACES OF WORSHIP
329,DCMS,EH,25/09/2012,Long & Little Wittenham PCC,0082000628,"44,000.00 ",Heritage Protection & Planning Group - Nat. Planning & Conservation Department,GRANTS PAYABLE - PLACES OF WORSHIP
330,DCMS,EH,19/09/2012,Bracon Ash PCC,0082000603,"29,000.00 ",Heritage Protection & Planning Group - Nat. Planning & Conservation Department,GRANTS PAYABLE - PLACES OF WORSHIP
331,DCMS,EH,19/10/2012,Little Ellingham PCC,0082000700,"40,000.00 ",Heritage Protection & Planning Group - Nat. Planning & Conservation Department,GRANTS PAYABLE - PLACES OF WORSHIP
332,DCMS,EH,17/09/2012,Hentland with Hoarwithy PCC,0082000583,"43,000.00 ",Heritage Protection & Planning Group - Nat. Planning & Conservation Department,GRANTS PAYABLE - PLACES OF WORSHIP
333,DCMS,EH,12/11/2012,Springline Parish PCC &,0082000755,"60,000.00 ",Heritage Protection & Planning Group - Nat. Planning & Conservation Department,GRANTS PAYABLE - PLACES OF WORSHIP
334,DCMS,EH,07/12/2012,St Pauls PCC,0082000862,"26,100.00 ",Heritage Protection & Planning Group - Nat. Planning & Conservation Department,GRANTS PAYABLE - PLACES OF WORSHIP
335,DCMS,EH,07/12/2012,Somerset Building Preservation Trust,0082000873,"41,100.00 ",Heritage Protection & Planning Group - Nat. Planning & Conservation Department,GRANTS PAYABLE - HISTORIC BUILDINGS
336,DCMS,EH,21/12/2012,Somerset Building Preservation Trust,0082000969,"41,100.00 ",Heritage Protection & Planning Group - Nat. Planning & Conservation Department,GRANTS PAYABLE - HISTORIC BUILDINGS
337,DCMS,EH,12/11/2012,Thorney Abbey PCC,0082000756,"54,000.00 ",Heritage Protection & Planning Group - Nat. Planning & Conservation Department,GRANTS PAYABLE - PLACES OF WORSHIP
338,DCMS,EH,21/12/2012,St Andrew's PCC,0082000944,"35,200.00 ",Heritage Protection & Planning Group - Nat. Planning & Conservation Department,GRANTS PAYABLE - PLACES OF WORSHIP
339,DCMS,EH,12/11/2012,The Old Meeting House Unitarian Church,0082000758,"30,500.00 ",Heritage Protection & Planning Group - Nat. Planning & Conservation Department,GRANTS PAYABLE - PLACES OF WORSHIP
340,DCMS,EH,14/11/2012,PCC Hoar Cross,0082000778,"25,400.00 ",Heritage Protection & Planning Group - Nat. Planning & Conservation Department,GRANTS PAYABLE - PLACES OF WORSHIP
341,DCMS,EH,18/12/2012,St Mary's Martham PCC,0082000920,"52,000.00 ",Heritage Protection & Planning Group - Nat. Planning & Conservation Department,GRANTS PAYABLE - PLACES OF WORSHIP
342,DCMS,EH,21/12/2012,Felkirk PCC,0082000946,"32,500.00 ",Heritage Protection & Planning Group - Nat. Planning & Conservation Department,GRANTS PAYABLE - PLACES OF WORSHIP
343,DCMS,EH,18/12/2012,Great Yarmouth PCC,0082000921,"38,250.00 ",Heritage Protection & Planning Group - Nat. Planning & Conservation Department,GRANTS PAYABLE - PLACES OF WORSHIP
344,DCMS,EH,18/12/2012,Great Yarmouth PCC,0082000922,"30,600.00 ",Heritage Protection & Planning Group - Nat. Planning & Conservation Department,GRANTS PAYABLE - PLACES OF WORSHIP
345,DCMS,EH,21/09/2012,Croyland Abbey PCC,0082000618,"38,000.00 ",Heritage Protection & Planning Group - Nat. Planning & Conservation Department,GRANTS PAYABLE - PLACES OF WORSHIP
346,DCMS,EH,18/12/2012,PCC of Winwick,0082000923,"135,076.00 ",Heritage Protection & Planning Group - Nat. Planning & Conservation Department,GRANTS PAYABLE - PLACES OF WORSHIP
347,DCMS,EH,12/11/2012,Potter Heigham PCC Restoration Fund,0082000760,"81,450.00 ",Heritage Protection & Planning Group - Nat. Planning & Conservation Department,GRANTS PAYABLE - PLACES OF WORSHIP
348,DCMS,EH,19/09/2012,The PCC of St Stythians,0082000605,"52,500.00 ",Heritage Protection & Planning Group - Nat. Planning & Conservation Department,GRANTS PAYABLE - PLACES OF WORSHIP
349,DCMS,EH,21/11/2012,Brize Norton PCC,0082000800,"50,800.00 ",Heritage Protection & Planning Group - Nat. Planning & Conservation Department,GRANTS PAYABLE - PLACES OF WORSHIP
350,DCMS,EH,14/12/2012,Brize Norton PCC,0082000897,"44,500.00 ",Heritage Protection & Planning Group - Nat. Planning & Conservation Department,GRANTS PAYABLE - PLACES OF WORSHIP
351,DCMS,EH,30/11/2012,"St Marys Church, Ludgershall PCC",0082000841,"66,000.00 ",Heritage Protection & Planning Group - Nat. Planning & Conservation Department,GRANTS PAYABLE - PLACES OF WORSHIP
352,DCMS,EH,12/10/2012,The PPC of Christ Church Walshaw,0082000683,"34,800.00 ",Heritage Protection & Planning Group - Nat. Planning & Conservation Department,GRANTS PAYABLE - PLACES OF WORSHIP
353,DCMS,EH,12/11/2012,PCC of Clitheroe Parish Church,0082000763,"54,900.00 ",Heritage Protection & Planning Group - Nat. Planning & Conservation Department,GRANTS PAYABLE - PLACES OF WORSHIP
354,DCMS,EH,05/10/2012,"St Peter's Church, Swainsthorpe",0082000661,"38,000.00 ",Heritage Protection & Planning Group - Nat. Planning & Conservation Department,GRANTS PAYABLE - PLACES OF WORSHIP
355,DCMS,EH,17/09/2012,All Saints Perry Street PCC,0082000588,"37,500.00 ",Heritage Protection & Planning Group - Nat. Planning & Conservation Department,GRANTS PAYABLE - PLACES OF WORSHIP
356,DCMS,EH,26/10/2012,CHURCH OF ST AUGUSTI,0082000734,"33,786.00 ",Heritage Protection & Planning Group - Nat. Planning & Conservation Department,GRANTS PAYABLE - PLACES OF WORSHIP
357,DCMS,EH,21/11/2012,St Andrew's Church Wootton PCC,0082000798,"41,250.00 ",Heritage Protection & Planning Group - Nat. Planning & Conservation Department,GRANTS PAYABLE - PLACES OF WORSHIP
358,DCMS,EH,07/09/2012,The Durdans Stables Limited,0082000553,"40,000.00 ",Heritage Protection & Planning Group - Nat. Planning & Conservation Department,GRANTS PAYABLE - HISTORIC BUILDINGS
359,DCMS,EH,25/09/2012,The Durdans Stables Limited,0082000629,"32,000.00 ",Heritage Protection & Planning Group - Nat. Planning & Conservation Department,GRANTS PAYABLE - HISTORIC BUILDINGS
360,DCMS,EH,17/09/2012,Folke PCC,0082000578,"29,182.00 ",Heritage Protection & Planning Group - Nat. Planning & Conservation Department,GRANTS PAYABLE - PLACES OF WORSHIP
361,DCMS,EH,12/11/2012,PCC of Christ Church,0082000767,"74,500.00 ",Heritage Protection & Planning Group - Nat. Planning & Conservation Department,GRANTS PAYABLE - PLACES OF WORSHIP
362,DCMS,EH,12/10/2012,Bolton Methodist Mission,0082000686,"66,400.00 ",Heritage Protection & Planning Group - Nat. Planning & Conservation Department,GRANTS PAYABLE - PLACES OF WORSHIP
363,DCMS,EH,12/11/2012,St Thomas PCC,0082000768,"72,500.00 ",Heritage Protection & Planning Group - Nat. Planning & Conservation Department,GRANTS PAYABLE - PLACES OF WORSHIP
364,DCMS,EH,17/09/2012,Arrow and Weethley PCC,0082000592,"26,500.00 ",Heritage Protection & Planning Group - Nat. Planning & Conservation Department,GRANTS PAYABLE - PLACES OF WORSHIP
365,DCMS,EH,05/10/2012,Golders Green Synagogue,0082000664,"42,300.00 ",Heritage Protection & Planning Group - Nat. Planning & Conservation Department,GRANTS PAYABLE - PLACES OF WORSHIP
366,DCMS,EH,03/10/2012,Wycliffe Congregational Church,0082000649,"96,500.00 ",Heritage Protection & Planning Group - Nat. Planning & Conservation Department,GRANTS PAYABLE - PLACES OF WORSHIP
367,DCMS,EH,21/11/2012,"PCC of Holy Trinity Church, Elsecar",0082000805,"43,000.00 ",Heritage Protection & Planning Group - Nat. Planning & Conservation Department,GRANTS PAYABLE - PLACES OF WORSHIP
368,DCMS,EH,21/09/2012,GREEK ORTHODOX CHURC,0082000624,"48,500.00 ",Heritage Protection & Planning Group - Nat. Planning & Conservation Department,GRANTS PAYABLE - PLACES OF WORSHIP
369,DCMS,EH,07/09/2012,PCC East Stratton,0082000554,"44,500.00 ",Heritage Protection & Planning Group - Nat. Planning & Conservation Department,GRANTS PAYABLE - PLACES OF WORSHIP
370,DCMS,EH,26/11/2012,PCC East Stratton,0082000824,"33,022.00 ",Heritage Protection & Planning Group - Nat. Planning & Conservation Department,GRANTS PAYABLE - PLACES OF WORSHIP
371,DCMS,EH,12/11/2012,PCC of St James in the City,0082000770,"134,454.00 ",Heritage Protection & Planning Group - Nat. Planning & Conservation Department,GRANTS PAYABLE - HISTORIC BUILDINGS
372,DCMS,EH,03/09/2012,St John's PCC,0082000542,"53,500.00 ",Heritage Protection & Planning Group - Nat. Planning & Conservation Department,GRANTS PAYABLE - PLACES OF WORSHIP
373,DCMS,EH,07/09/2012,St James PCC,0082000555,"99,000.00 ",Heritage Protection & Planning Group - Nat. Planning & Conservation Department,GRANTS PAYABLE - PLACES OF WORSHIP
374,DCMS,EH,21/12/2012,St James PCC,0082000954,"53,000.00 ",Heritage Protection & Planning Group - Nat. Planning & Conservation Department,GRANTS PAYABLE - PLACES OF WORSHIP
375,DCMS,EH,21/12/2012,St James PCC,0082000955,"36,100.00 ",Heritage Protection & Planning Group - Nat. Planning & Conservation Department,GRANTS PAYABLE - PLACES OF WORSHIP
376,DCMS,EH,30/11/2012,Friday Bridge PCC,0082000843,"32,000.00 ",Heritage Protection & Planning Group - Nat. Planning & Conservation Department,GRANTS PAYABLE - PLACES OF WORSHIP
377,DCMS,EH,21/12/2012,Serbian Orthodox Church,0082000956,"46,000.00 ",Heritage Protection & Planning Group - Nat. Planning & Conservation Department,GRANTS PAYABLE - PLACES OF WORSHIP
378,DCMS,EH,12/12/2012,Sutton-in-Ashfield United Reformed Churc,0082000882,"37,000.00 ",Heritage Protection & Planning Group - Nat. Planning & Conservation Department,GRANTS PAYABLE - PLACES OF WORSHIP
379,DCMS,EH,25/09/2012,PCC of St Chads,0082000630,"31,500.00 ",Heritage Protection & Planning Group - Nat. Planning & Conservation Department,GRANTS PAYABLE - PLACES OF WORSHIP
380,DCMS,EH,14/12/2012,Barnsley MBC,0082000896,"30,000.00 ",Heritage Protection & Planning Group - Nat. Planning & Conservation Department,GRANTS PAYABLE - HISTORIC BUILDINGS
381,DCMS,EH,07/09/2012,Trustees of Quarr Abbey,0082000556,"42,000.00 ",Heritage Protection & Planning Group - Nat. Planning & Conservation Department,GRANTS PAYABLE - HISTORIC BUILDINGS
382,DCMS,EH,26/11/2012,PCC Christ Church,0082000823,"40,332.00 ",Heritage Protection & Planning Group - Nat. Planning & Conservation Department,GRANTS PAYABLE - PLACES OF WORSHIP
383,DCMS,EH,16/11/2012,The Dean & Chapter of Coventry Cathedral,0082000789,"67,513.00 ",Heritage Protection & Planning Group - Nat. Planning & Conservation Department,GRANTS PAYABLE - HISTORIC BUILDINGS
384,DCMS,EH,17/09/2012,UK Historic Building Preservation Trust,0082000597,"57,137.00 ",Heritage Protection & Planning Group - Nat. Planning & Conservation Department,GRANTS PAYABLE - HISTORIC BUILDINGS
385,DCMS,EH,26/10/2012,BOXLEY ABBEY HOSPITI,0082000737,"99,000.00 ",Heritage Protection & Planning Group - Nat. Planning & Conservation Department,GRANTS PAYABLE - HISTORIC BUILDINGS
386,DCMS,EH,06/11/2012,Angmering Park Estate Trust,0082000749,"25,000.00 ",Heritage Protection & Planning Group - Nat. Planning & Conservation Department,GRANTS PAYABLE - HISTORIC BUILDINGS
